bitfinex/quotes_ETHUSD_20250507
["timestamp","ask_amount","ask_price","bid_price","bid_amount"]
[1746578797058,3.0,1839.5,1839.2,5.43710018]
[1746578797213,3.0,1839.5,1839.3,5.43683373]
[1746578798133,3.0,1839.5,1839.2,5.43705656]
[1746578798668,3.0,1839.5,1839.0,12.9848]
[1746578798844,3.0,1839.5,1839.1,5.43719831]
[1746578799171,3.0,1839.5,1839.2,5.43702521]
[1746578799356,3.41483528,1839.7,1839.4,5.43655539]
[1746578799558,0.41483528,1839.7,1839.6,5.43596434]
[1746578799735,14.42159215,1840.0,1839.6,5.49031985]
[1746578799935,15.86375137,1840.0,1839.5,17.65411243]
[1746578800273,3.30334948,1839.9,1839.6,5.43586384]
[1746578800730,0.30334948,1839.9,1839.8,5.43537341]
[1746578800932,4.22159215,1840.2,1839.9,5.43487918]
[1746578801134,3.0,1840.1,1839.9,5.43485365]
[1746578802173,0.41570484,1840.2,1840.0,5.43465376]
[1746578802335,3.0,1840.3,1840.0,5.43465376]
[1746578802843,3.0,1840.3,1839.8,0.7745]
[1746578803046,0.30341941,1840.2,1839.9,5.43496643]
[1746578803269,3.0,1840.1,1839.9,5.43496643]
[1746578803654,4.22159215,1840.0,1839.7,5.43547373]
[1746578803874,3.0,1839.9,1839.7,5.43547373]
[1746578804088,3.0,1839.9,1839.6,11.54674863]
[1746578804380,3.0,1839.9,1839.6,16.98248624]
[1746578804537,3.0,1839.9,1839.6,11.54673201]
[1746578805242,3.0,1839.7,1839.6,6.111]
[1746578806179,3.0,1840.1,1839.8,5.43537341]
[1746578806373,3.0,1840.1,1839.8,5.43519601]
[1746578806573,3.0,1840.1,1839.9,5.4348991]
[1746578806775,0.30344202,1840.0,1839.9,5.4348991]
[1746578807181,4.52503417,1840.0,1839.6,6.9323]
[1746578807567,9.95984517,1840.0,1839.7,5.43565552]
[1746578807737,7.22159215,1839.8,1839.3,0.7579]
[1746578807942,7.22159215,1839.8,1839.5,6.112]
[1746578808162,8.51757667,1840.0,1839.7,10.87110556]
[1746578808364,8.51757667,1840.0,1839.7,5.43543671]
[1746578808775,8.51757667,1840.0,1839.6,5.43579181]
[1746578808978,13.95247608,1840.0,1839.5,11.54806568]
[1746578809171,10.95247608,1840.0,1839.6,5.43580119]
[1746578809348,3.30349724,1839.9,1839.6,5.43580119]
[1746578810082,0.30349724,1839.8,1839.6,5.43580119]
[1746578810384,0.30349724,1839.8,1839.7,5.43566885]
[1746578810542,0.30349724,1839.8,1839.6,5.43577008]
[1746578810754,0.30349724,1839.8,1839.7,5.43566885]
[1746578810958,0.30349724,1839.9,1839.6,5.43579421]
[1746578811159,3.0,1839.8,1839.5,17.64700347]
[1746578811399,12.65700941,1839.8,1839.5,6.112]
[1746578811604,4.22159215,1839.6,1839.4,11.54843472]
[1746578811775,4.22159215,1839.6,1839.4,11.54837293]
[1746578811976,7.22159215,1839.8,1839.5,5.43625985]
[1746578812293,7.22159215,1839.8,1839.5,5.43605298]
[1746578812699,7.22159215,1839.8,1839.5,10.87209314]
[1746578813205,7.22159215,1839.8,1839.6,5.43596011]
[1746578813578,7.22159215,1839.8,1839.6,5.43585303]
[1746578813777,7.22159215,1839.8,1839.5,5.43607695]
[1746578813981,7.22159215,1839.8,1839.6,5.43595829]
[1746578814272,7.22159215,1840.0,1839.7,5.43566885]
[1746578814478,3.0,1839.9,1839.7,5.43566885]
[1746578814896,3.0,1839.9,1839.6,5.43579226]
[1746578815269,3.0,1839.9,1839.6,5.43578025]
[1746578815471,0.30393105,1839.8,1839.7,5.4356624]
[1746578817310,0.30393105,1839.8,1839.5,5.43612114]
[1746578817609,3.0,1839.9,1839.7,5.43566885]
[1746578818070,0.30426708,1839.8,1839.7,5.43566885]
[1746578819109,0.30426708,1839.8,1839.7,6.24186885]
[1746578819468,0.30426708,1839.8,1839.7,6.29621254]
[1746578819674,0.30426708,1839.8,1839.7,6.24186885]
[1746578820177,0.40538222,1840.2,1840.1,6.24068725]
[1746578820408,3.0,1840.5,1840.3,5.43373015]
[1746578820713,3.0,1840.5,1840.2,5.43402372]
[1746578821610,0.30491036,1840.4,1840.2,5.43402372]
[1746578821812,0.30491036,1840.4,1840.1,18.44353399]
[1746578822018,10.83393424,1840.4,1840.1,5.43429462]
[1746578822325,4.22159215,1840.2,1840.0,5.4346315]
[1746578822624,4.63487094,1840.2,1840.0,5.4346315]
[1746578822982,4.63487094,1840.2,1840.1,0.11007216]
[1746578823710,4.63487094,1840.2,1840.1,5.54455941]
[1746578823907,4.93962684,1840.2,1840.1,5.54455941]
[1746578824112,0.71803469,1840.2,1840.1,5.54455941]
[1746578824712,0.71803469,1840.2,1840.1,0.11007216]
[1746578825012,0.71803469,1840.2,1840.1,5.54455941]
[1746578826214,0.71803469,1840.2,1840.1,0.11007216]
[1746578826566,3.71803469,1840.2,1840.1,0.11007216]
[1746578826771,7.93962684,1840.2,1840.1,0.11007216]
[1746578827004,7.93962684,1840.2,1840.0,6.085]
[1746578827181,7.93962684,1840.2,1840.1,0.11007216]
[1746578828097,0.71803469,1840.2,1840.1,5.54455941]
[1746578828789,0.71803469,1840.2,1840.1,0.11007216]
[1746578829110,0.71803469,1840.2,1840.1,6.19407216]
[1746578829111,7.93962684,1840.2,1840.1,6.19407216]
[1746578829318,7.93962684,1840.2,1840.1,0.11007216]
[1746578829480,7.93962684,1840.2,1840.0,6.083]
[1746578829812,7.93962684,1840.2,1840.1,0.11007216]
[1746578830605,14.71117271,1840.2,1840.1,0.11007216]
[1746578830804,14.71117271,1840.2,1840.0,6.083]
[1746578831115,0.3047559,1840.1,1840.0,6.083]
[1746578831512,0.3047559,1840.1,1839.9,6.086]
[1746578832020,0.3047559,1840.0,1839.9,6.086]
[1746578833681,3.3047559,1840.0,1839.9,6.086]
[1746578834092,7.52634805,1840.0,1839.7,11.5214776]
[1746578834293,7.52634805,1840.0,1839.8,6.08]
[1746578834518,0.3047559,1839.9,1839.8,6.08]
[1746578834741,0.3047559,1839.9,1839.7,11.5214776]
[1746578835440,0.3047559,1839.8,1839.7,11.5214776]
[1746578837338,0.3047559,1840.1,1839.8,5.43531171]
[1746578837654,3.3047559,1840.1,1839.8,5.43536711]
[1746578838450,0.3047559,1840.0,1839.8,5.43536711]
[1746578838811,0.3047559,1839.9,1839.8,5.43536711]
[1746578839608,3.3047559,1839.9,1839.6,5.43581706]
[1746578839808,4.22159215,1839.8,1839.6,11.51181706]
[1746578840027,3.3047559,1839.9,1839.7,5.43548141]
[1746578840227,0.3047559,1839.9,1839.8,5.43537341]
[1746578840948,0.3047559,1839.9,1839.7,5.43548141]
[1746578841749,2.58331828,1839.9,1839.7,5.43548141]
[1746578842047,0.3047559,1839.8,1839.7,5.43548141]
[1746578842841,3.3047559,1839.8,1839.7,5.43548141]
[1746578844557,3.3047559,1839.8,1839.7,6.27933644]
[1746578844558,0.3047559,1839.8,1839.7,6.27933644]
[1746578844759,0.3047559,1839.8,1839.7,6.22498141]
[1746578845757,0.3047559,1839.8,1839.7,18.38298141]
[1746578846063,0.3047559,1839.8,1839.7,18.48482074]
[1746578846937,2.58331828,1839.8,1839.7,5.53732074]
[1746578847149,2.58331828,1839.8,1839.7,5.53750818]
[1746578848841,0.3047559,1839.8,1839.7,5.53750818]
[1746578849038,0.3047559,1839.8,1839.7,5.59186318]
[1746578849243,0.3047559,1839.8,1839.7,6.36576318]
[1746578850070,0.3047559,1839.8,1839.7,6.31140818]
[1746578850260,0.3047559,1839.8,1839.7,6.36575941]
[1746578850636,0.3047559,1839.8,1839.7,6.3657593]
[1746578851079,0.3047559,1839.8,1839.7,6.36575911]
[1746578851372,0.3047559,1839.8,1839.7,6.36575942]
[1746578853139,0.3047559,1840.0,1839.9,6.25527799]
[1746578853369,0.3047559,1840.0,1839.9,18.56547587]
[1746578853575,0.3047559,1840.0,1839.9,18.51113637]
[1746578853746,0.3047559,1840.0,1839.9,19.06113637]
[1746578853943,3.65275381,1840.2,1840.1,6.20288725]
[1746578854141,3.65275381,1840.2,1840.1,6.2572208]
[1746578854567,3.65275381,1840.4,1840.3,5.43389664]
[1746578854801,3.65275381,1840.4,1840.3,18.45442754]
[1746578855003,3.65275381,1840.4,1840.3,18.40009664]
[1746578855900,4.75323517,1840.9,1840.8,6.22762068]
[1746578856084,4.75323517,1840.9,1840.8,18.35262068]
[1746578858019,3.0,1841.3,1841.1,5.43153549]
[1746578858922,3.0,1841.3,1841.0,5.43163846]
[1746578859281,3.41135505,1841.3,1841.0,5.43163846]
[1746578859617,3.41135505,1841.3,1841.0,10.86329427]
[1746578860198,3.41135505,1841.3,1841.0,5.43160182]
[1746578861022,3.41135505,1841.3,1841.0,10.86320981]
[1746578861186,3.41135505,1841.3,1841.0,5.43160182]
[1746578861383,8.8424035,1841.3,1840.9,5.43196064]
[1746578861604,8.8424035,1841.3,1841.0,6.061]
[1746578861605,8.43155906,1841.1,1841.0,6.061]
[1746578861813,3.0,1841.1,1841.0,6.061]
[1746578862318,8.43153549,1841.1,1841.0,6.061]
[1746578862623,3.0,1841.1,1841.0,6.061]
[1746578862987,0.7826,1841.2,1841.0,11.49283052]
[1746578863182,3.41135505,1841.3,1841.1,5.43148751]
[1746578863598,3.41135505,1841.3,1841.0,12.29194936]
[1746578863794,3.41135505,1841.3,1841.0,12.29191837]
[1746578864819,3.41135505,1841.3,1841.0,17.72355105]
[1746578865024,3.41135505,1841.3,1841.0,12.29191837]
[1746578865321,3.41135505,1841.3,1841.0,11.49261837]
[1746578865824,3.41135505,1841.3,1841.0,11.49261557]
[1746578865990,3.41135505,1841.3,1841.0,11.49267002]
[1746578866330,3.41135505,1841.3,1841.0,17.54467002]
[1746578867593,3.41135505,1841.3,1841.1,5.43137926]
[1746578867794,3.41135505,1841.3,1841.0,17.54468052]
[1746578867994,3.41135505,1841.3,1841.0,17.54463692]
[1746578868224,3.41135505,1841.3,1841.2,5.43124049]
[1746578868410,0.777,1841.6,1841.2,6.21214049]
[1746578868725,0.777,1841.6,1841.3,5.43076759]
[1746578868726,4.99040247,1841.6,1841.3,5.43076759]
[1746578868926,3.0,1841.5,1841.3,5.43076759]
[1746578869697,3.41176741,1841.5,1841.3,5.43076759]
[1746578869901,0.41176741,1841.5,1841.4,5.43065059]
[1746578870108,3.0,1841.7,1841.5,5.43024779]
[1746578870628,3.0,1841.7,1841.4,5.43046233]
[1746578871129,3.0,1841.7,1841.4,11.48946233]
[1746578871332,3.0,1841.7,1841.5,5.4302241]
[1746578873126,0.40588379,1841.7,1841.6,5.43006081]
[1746578873455,3.0,1841.8,1841.5,5.48447133]
[1746578874048,8.42959524,1841.8,1841.4,11.48952595]
[1746578874340,12.64299771,1841.8,1841.4,11.48944309]
[1746578874511,7.21340247,1841.8,1841.5,5.43034065]
[1746578874907,7.21340247,1841.8,1841.5,5.48445231]
[1746578875214,3.8174,1841.9,1841.6,5.42988725]
[1746578875842,9.24658833,1841.9,1841.5,6.20459018]
[1746578876298,5.42950789,1841.8,1841.5,6.20456979]
[1746578876638,9.24669329,1841.9,1841.5,5.43016979]
[1746578876802,3.0,1841.7,1841.4,11.48947144]
[1746578877762,2.27441443,1841.6,1841.4,11.48947144]
[1746578877920,2.27441443,1841.6,1841.4,6.059]
[1746578878137,2.27441443,1841.6,1841.4,12.1]
[1746578878437,3.0,1841.5,1841.4,12.1]
[1746578878813,3.0,1841.5,1841.2,5.43107037]
[1746578879047,2.27441443,1841.4,1841.2,5.43107037]
[1746578879212,2.69170649,1841.4,1841.3,6.058]
[1746578879613,0.41729206,1841.4,1841.3,5.43094552]
[1746578879833,2.27441443,1841.5,1841.2,11.48904735]
[1746578880765,2.27441443,1841.5,1841.2,6.058]
[1746578880984,2.27441443,1841.3,1840.9,25.0109578]
[1746578881128,2.27441443,1841.3,1841.0,16.92143792]
[1746578881478,3.0,1841.4,1841.1,5.43137774]
[1746578881679,6.04151443,1841.5,1841.1,6.26249303]
[1746578881827,11.47197229,1841.5,1841.1,6.20817968]
[1746578882159,8.43067003,1841.4,1841.0,11.48962818]
[1746578882372,2.27441443,1841.3,1841.0,11.48968848]
[1746578882568,2.27441443,1841.3,1841.0,16.92133662]
[1746578882758,2.27441443,1841.3,1841.1,5.43142669]
[1746578882953,2.27441443,1841.3,1841.2,5.43124049]
[1746578883161,2.5786185,1841.3,1841.2,5.43124049]
[1746578883365,2.10900027,1841.3,1841.2,5.43124049]
[1746578884470,2.10900027,1841.3,1841.0,11.4896034]
[1746578884660,0.30420407,1841.2,1841.0,11.4896034]
[1746578885052,2.27441443,1841.1,1841.0,11.4896034]
[1746578885456,2.27441443,1841.1,1840.8,11.491319]
[1746578885457,6.3561185,1841.1,1840.8,11.491319]
[1746578885759,2.27441443,1840.9,1840.7,5.43259355]
[1746578886096,2.27441443,1840.9,1840.5,5.43306353]
[1746578886097,7.70670548,1840.9,1840.5,17.50314449]
[1746578886276,2.27441443,1840.7,1840.5,17.50314449]
[1746578886593,5.27441443,1840.7,1840.4,5.43359972]
[1746578886977,0.30483813,1840.6,1840.5,5.43327898]
[1746578887291,0.70738637,1840.6,1840.5,5.43327898]
[1746578887454,0.30483813,1840.6,1840.5,5.43327898]
[1746578887652,5.27441443,1840.7,1840.6,5.43301097]
[1746578887880,2.27441443,1840.7,1840.6,5.43301097]
[1746578888600,2.57898815,1840.7,1840.5,6.20801194]
[1746578888988,2.57898815,1840.7,1840.5,11.64109107]
[1746578889154,2.27441443,1840.7,1840.5,11.64107524]
[1746578889356,2.27441443,1840.7,1840.5,6.20797913]
[1746578889655,2.27441443,1840.7,1840.6,5.43301097]
[1746578889856,7.70714146,1840.7,1840.3,0.7615]
[1746578890058,2.27441443,1840.5,1840.3,5.43385742]
[1746578890305,1.22805643,1840.6,1840.4,5.43346584]
[1746578890459,1.22805643,1840.6,1840.3,5.43368914]
[1746578890656,0.39985643,1840.6,1840.4,5.43353009]
[1746578890855,5.27441443,1840.7,1840.4,5.43353009]
[1746578891188,3.30438259,1840.6,1840.2,12.067]
[1746578891362,5.27441443,1840.5,1840.2,12.067]
[1746578891563,6.33549702,1840.5,1840.2,17.50118406]
[1746578891892,6.03111443,1840.5,1840.2,6.035]
[1746578892054,2.27441443,1840.3,1840.2,6.035]
[1746578892473,2.27441443,1840.3,1839.7,12.22225607]
[1746578892474,3.0,1840.0,1839.7,12.22225607]
[1746578892683,5.69123743,1840.0,1839.7,12.22218566]
[1746578893214,5.69123743,1840.0,1839.7,12.22216266]
[1746578893389,5.69123743,1840.0,1839.7,11.47144428]
[1746578893590,5.69123743,1840.0,1839.8,5.43536461]
[1746578894178,11.12605017,1840.0,1839.7,6.036]
[1746578894520,4.52942802,1840.0,1839.8,5.4353092]
[1746578894699,5.27441443,1839.9,1839.7,6.036]
[1746578894905,0.8224,1839.8,1839.7,6.036]
[1746578895104,3.0,1839.7,1839.4,11.47344405]
[1746578895312,5.27441443,1839.7,1839.4,11.47332819]
[1746578895680,3.0,1839.7,1839.5,5.43614494]
[1746578895924,0.8224,1839.8,1839.6,5.43596434]
[1746578896102,3.0,1839.9,1839.7,5.43566885]
[1746578896306,9.27807048,1839.9,1839.5,5.43608563]
[1746578896487,14.71343021,1839.9,1839.4,6.037]
[1746578896694,3.8218,1839.6,1839.4,6.037]
[1746578897404,5.4363598,1839.5,1839.3,19.581]
[1746578897711,0.8218,1839.6,1839.2,11.47502468]
[1746578897901,0.8218,1839.6,1839.2,6.038]
[1746578898583,3.0,1839.5,1839.0,5.43762166]
[1746578898814,8.43638036,1839.5,1839.1,11.47532875]
[1746578899011,3.0,1839.5,1839.1,11.47523426]
[1746578899318,13.5812481,1839.5,1839.1,11.47523426]
[1746578899486,8.14495942,1839.5,1839.1,11.47523426]
[1746578899684,13.58133907,1839.5,1839.1,6.038]
[1746578899899,3.0,1839.1,1838.8,5.43818264]
[1746578900237,3.0,1839.2,1838.8,11.47718264]
[1746578901035,3.0,1839.2,1838.8,16.91536967]
[1746578901227,3.0,1839.2,1838.9,5.43800161]
[1746578902138,3.0,1839.2,1839.0,5.43772218]
[1746578902341,3.0,1839.2,1838.9,5.43785469]
[1746578902542,3.8228,1839.4,1839.0,5.43758743]
[1746578902845,3.8228,1839.4,1839.0,5.43747636]
[1746578903005,3.8228,1839.4,1838.8,6.039]
[1746578903205,3.8228,1839.4,1839.1,5.43738363]
[1746578903950,3.4020313,1839.5,1839.3,5.43673037]
[1746578904253,0.4020313,1839.5,1839.4,0.11500424]
[1746578904433,3.34020313,1839.5,1839.4,0.11500424]
[1746578904751,3.0,1839.4,1839.1,5.43728104]
[1746578904964,3.0,1839.5,1839.2,5.43713522]
[1746578905458,3.0,1839.6,1839.3,5.43682784]
[1746578905759,0.7939,1839.7,1839.4,5.43652271]
[1746578906053,4.83875941,1839.7,1839.4,5.43652271]
[1746578906255,10.2744464,1839.7,1839.3,5.43672052]
[1746578906458,3.7939,1839.7,1839.5,5.43611346]
[1746578906655,0.7939,1839.7,1839.4,5.43650971]
[1746578906823,3.0,1839.6,1839.3,5.43672854]
[1746578907145,8.43600422,1839.6,1839.2,5.43698658]
[1746578907356,8.43600422,1839.6,1839.2,10.87391749]
[1746578907725,8.43600422,1839.6,1839.2,5.43693091]
[1746578907939,9.9025616,1839.6,1839.2,5.43693091]
[1746578908133,9.9025616,1839.6,1839.2,10.87385814]
[1746578908956,4.46655738,1839.6,1839.3,5.43682154]
[1746578909157,6.22972938,1839.7,1839.3,5.43661559]
[1746578909158,3.7939,1839.7,1839.3,5.43661559]
[1746578909329,3.7939,1839.7,1839.4,5.43645051]
[1746578909741,0.7939,1839.7,1839.4,5.43633591]
[1746578909944,0.7939,1839.7,1839.5,5.43624613]
[1746578910267,0.7939,1839.7,1839.4,5.43637892]
[1746578910832,0.8004,1839.5,1839.2,11.47801175]
[1746578911032,3.8004,1839.5,1839.3,5.43656406]
[1746578912164,4.21804439,1839.5,1839.2,11.4780933]
[1746578912328,9.65440039,1839.5,1839.2,6.041]
[1746578912661,3.0,1839.3,1839.2,6.041]
[1746578912862,5.60540165,1839.5,1839.2,11.4779898]
[1746578913043,5.60540165,1839.5,1839.2,6.14310741]
[1746578913370,11.04183418,1839.5,1839.2,6.14310741]
[1746578913967,3.0,1839.3,1839.2,6.14310741]
[1746578914174,3.0,1839.3,1839.2,0.10210741]
[1746578914332,3.0,1839.3,1839.1,5.43742697]
[1746578914535,3.0,1839.3,1839.2,0.1026644]
[1746578915157,3.0,1839.3,1839.0,5.43753066]
[1746578915357,3.0,1839.3,1839.1,0.1026644]
[1746578915760,3.0,1839.3,1839.1,5.53993479]
[1746578916077,3.0,1839.3,1839.1,0.1026644]
[1746578916282,0.767,1839.2,1839.1,0.1026644]
[1746578916651,0.767,1839.2,1838.9,5.43786983]
[1746578916852,0.767,1839.2,1839.1,0.1026644]
[1746578917042,8.43751584,1839.1,1838.8,6.041]
[1746578917247,8.43745835,1839.1,1838.7,6.019]
[1746578917461,9.24806128,1839.1,1838.6,12.22583865]
[1746578917661,9.24806128,1839.1,1838.7,5.43850696]
[1746578918092,3.81060293,1839.1,1838.7,5.43850696]
[1746578918297,0.30372816,1839.0,1838.8,5.43812397]
[1746578918494,0.30372816,1839.0,1838.8,5.4381215]
[1746578918699,3.0,1839.1,1838.8,5.4381215]
[1746578919500,3.0,1839.1,1838.7,5.43847182]
[1746578919667,0.304003,1839.0,1838.7,5.43840055]
[1746578919866,3.0,1839.1,1838.8,5.43831177]
[1746578920397,3.0,1839.1,1838.6,6.7872]
[1746578920603,0.30431445,1839.0,1838.8,5.43805623]
[1746578920801,0.30431445,1839.0,1838.9,5.4380336]
[1746578920968,0.30431445,1839.0,1838.8,5.43805623]
[1746578921289,3.0,1839.1,1838.8,5.43805623]
[1746578921487,3.0,1839.1,1838.9,5.43802454]
[1746578921865,3.767,1839.2,1838.9,5.43802454]
[1746578922068,3.0,1839.3,1839.0,5.43764165]
[1746578922877,3.8009,1839.4,1839.2,5.43705477]
[1746578923099,0.41764439,1839.5,1839.2,5.43695451]
[1746578923296,9.19444207,1839.6,1839.2,5.43695451]
[1746578923503,11.07937554,1839.6,1839.2,5.43695451]
[1746578924211,6.19388395,1839.8,1839.2,0.7996]
[1746578924413,6.60993448,1840.0,1839.7,5.43566885]
[1746578924606,4.175123,1840.0,1839.7,5.43566885]
[1746578924805,13.8290818,1840.0,1839.6,5.43589201]
[1746578925114,15.75545009,1840.0,1839.6,5.43589201]
[1746578925511,5.43530681,1839.9,1839.5,0.7996]
[1746578925704,12.65466045,1839.8,1839.4,11.45644464]
[1746578925900,9.65466045,1839.8,1839.4,11.45634528]
[1746578926115,3.0,1839.7,1839.4,11.45634528]
[1746578926300,3.0,1839.7,1839.4,16.89270561]
[1746578926504,3.0,1839.7,1839.4,11.4563309]
[1746578927019,5.02227221,1839.6,1839.4,6.02]
[1746578927380,3.0,1839.5,1839.4,6.02]
[1746578928011,3.3051962,1839.5,1839.4,6.02]
[1746578929089,3.3051962,1839.5,1839.4,11.45655539]
[1746578929419,3.3051962,1839.5,1839.4,6.02]
[1746578930301,3.3051962,1839.5,1839.4,11.45655539]
[1746578930694,0.3051962,1839.5,1839.4,11.45655539]
[1746578930900,0.70919783,1839.5,1839.4,11.45655539]
[1746578931095,0.3051962,1839.5,1839.4,11.45655539]
[1746578931430,0.30524959,1839.5,1839.4,6.02]
[1746578931930,2.58487099,1839.5,1839.4,6.02]
[1746578932910,2.58487099,1839.5,1839.4,11.45655539]
[1746578933320,2.2796214,1839.5,1839.4,6.02]
[1746578933520,2.58492666,1839.5,1839.4,11.45655539]
[1746578934032,2.58492666,1839.5,1839.4,6.02]
[1746578934401,3.0,1839.4,1839.3,11.44865589]
[1746578934718,3.30530526,1839.4,1839.1,11.45633782]
[1746578934923,2.58492666,1839.3,1839.1,11.45626521]
[1746578935246,0.30530526,1839.2,1839.1,11.4562511]
[1746578935610,0.30535016,1839.2,1839.1,11.4562511]
[1746578936745,8.74258977,1839.2,1838.8,5.43812285]
[1746578936917,8.74258977,1839.2,1838.7,12.7963]
[1746578936918,2.2796214,1839.0,1838.7,12.7963]
[1746578937117,2.2796214,1839.0,1838.7,6.7913]
[1746578937316,2.2796214,1839.0,1838.8,5.43813684]
[1746578937709,0.30535016,1838.9,1838.8,5.43813684]
[1746578938508,0.71674256,1838.9,1838.8,5.43813684]
[1746578938742,0.30535016,1838.9,1838.8,5.43813684]
[1746578939649,0.30535016,1838.9,1838.8,5.49251615]
[1746578940140,0.30535016,1839.1,1839.0,5.4377379]
[1746578940353,0.30535016,1839.1,1838.9,5.43787979]
[1746578940547,0.30535016,1839.1,1839.0,5.4377379]
[1746578941713,0.30535016,1839.1,1838.6,5.43872692]
[1746578941714,0.7534,1839.0,1838.6,5.43872692]
[1746578942035,2.2796214,1838.8,1838.6,5.43872692]
[1746578942239,3.0,1838.8,1838.7,5.43862511]
[1746578942617,0.30535016,1838.8,1838.7,11.43962511]
[1746578943152,0.72188752,1838.8,1838.7,11.45862511]
[1746578943649,0.30535016,1838.8,1838.7,11.45862511]
[1746578944643,0.30535016,1838.8,1838.7,17.45862511]
[1746578944845,0.30535016,1838.8,1838.7,12.02]
[1746578945058,5.58497156,1838.8,1838.7,12.02]
[1746578945440,5.58497156,1838.8,1838.7,17.45862511]
[1746578945852,5.58497156,1838.8,1838.7,12.02]
[1746578946167,5.2796214,1838.8,1838.7,12.02]
[1746578946571,5.69243508,1838.8,1838.7,12.02]
[1746578947576,5.69243508,1838.8,1838.7,17.45862511]
[1746578947870,3.41281368,1838.8,1838.7,17.45862511]
[1746578948058,3.0,1838.8,1838.7,18.22652511]
[1746578948974,3.0,1839.1,1838.9,5.43798136]
[1746578949379,3.0,1839.1,1838.8,5.43811108]
[1746578949578,3.0,1839.1,1838.7,12.7879]
[1746578949579,3.0,1839.1,1838.9,5.43797749]
[1746578949989,3.0,1839.1,1838.8,5.4381495]
[1746578950187,3.41305874,1839.1,1838.8,5.4381495]
[1746578950477,0.41305874,1839.1,1839.0,5.4377379]
[1746578950785,5.43606699,1839.6,1839.4,5.43637626]
[1746578950786,0.7749,1839.6,1839.4,5.43637626]
[1746578950970,0.39855901,1839.6,1839.5,5.43612361]
[1746578951143,7.03285657,1839.9,1839.5,11.68823889]
[1746578951344,3.0,1839.8,1839.5,6.19764837]
[1746578952863,3.0,1839.8,1839.4,5.43641602]
[1746578952864,8.43538293,1839.8,1839.4,5.43642334]
[1746578953283,8.43538293,1839.8,1839.3,18.24361396]
[1746578953284,4.21939188,1839.5,1839.2,5.4370497]
[1746578953749,4.21939188,1839.5,1839.2,5.43695165]
[1746578953951,4.21939188,1839.5,1839.3,5.4367529]
[1746578954680,4.21939188,1839.5,1839.2,5.43692103]
[1746578954997,3.7909,1839.7,1839.5,5.43600612]
[1746578955301,3.0,1839.7,1839.5,5.43600612]
[1746578956602,3.0,1839.7,1839.6,5.43596434]
[1746578956906,3.0,1839.7,1839.5,5.43606449]
[1746578957208,3.0,1839.7,1839.6,5.43596434]
[1746578957571,3.0,1839.7,1839.5,5.4360634]
[1746578957967,0.30463125,1839.6,1839.5,5.4360634]
[1746578958487,0.30463125,1839.6,1839.5,17.47942158]
[1746578958689,5.01469188,1840.3,1840.1,5.43435954]
[1746578958888,3.30451795,1840.2,1840.0,10.86917326]
[1746578959090,3.30451795,1840.2,1839.9,5.43507799]
[1746578959485,9.20575076,1840.0,1839.6,5.43585082]
[1746578959805,3.0,1839.8,1839.6,5.43584015]
[1746578960511,3.0,1839.8,1839.6,5.43574182]
[1746578961011,3.0,1839.8,1839.6,10.87150094]
[1746578961312,3.7708,1840.0,1839.7,5.43539436]
[1746578961608,0.30426674,1839.9,1839.7,5.43539436]
[1746578961776,3.7708,1840.0,1839.7,5.43539436]
[1746578962287,0.30426672,1839.9,1839.6,5.4357441]
[1746578962471,0.30426672,1839.9,1839.6,10.87153445]
[1746578962675,0.30426672,1839.8,1839.6,10.87153445]
[1746578962940,3.7708,1840.0,1839.7,5.43566885]
[1746578963205,0.30419572,1839.9,1839.7,5.43566885]
[1746578963411,3.7708,1840.0,1839.7,5.43566885]
[1746578963613,9.20558287,1840.0,1839.7,5.43566885]
[1746578963912,0.3041301,1839.9,1839.7,5.43566885]
[1746578964115,9.20558287,1840.0,1839.7,5.43566885]
[1746578964517,0.30411273,1839.9,1839.7,5.43566885]
[1746578965082,3.0,1839.8,1839.6,5.43585577]
[1746578965679,3.0,1839.8,1839.7,5.43566885]
[1746578967413,3.39810328,1839.8,1839.7,5.43566885]
[1746578968215,3.39810328,1839.8,1839.6,5.43579477]
[1746578968823,3.39810328,1839.8,1839.6,5.43579453]
[1746578969400,3.39810328,1839.8,1839.6,5.43576582]
[1746578969605,0.39810328,1839.8,1839.7,5.43566885]
[1746578969915,3.7708,1840.0,1839.8,5.43534315]
[1746578970078,5.84068829,1840.3,1840.1,5.43435026]
[1746578970079,0.40663018,1840.3,1840.1,5.43435026]
[1746578970414,6.23811325,1840.5,1840.1,5.43435026]
[1746578970601,0.30398018,1840.2,1840.1,5.43435026]
[1746578970803,3.0,1840.4,1840.1,5.43435026]
[1746578971203,0.30397739,1840.3,1840.1,5.43435026]
[1746578971400,0.30397739,1840.3,1840.0,5.43457759]
[1746578971621,12.91749644,1840.4,1840.0,5.43457759]
[1746578971987,14.93763246,1840.4,1840.0,5.43457759]
[1746578972183,0.30395866,1840.3,1839.9,12.1847758]
[1746578972400,0.30395866,1840.2,1840.0,5.43466555]
[1746578972614,3.0,1840.1,1839.8,5.4352526]
[1746578972795,4.21939188,1840.0,1839.9,11.977]
[1746578973520,4.52338136,1840.0,1839.9,11.977]
[1746578973907,4.21939188,1840.0,1839.9,11.977]
[1746578974106,3.0,1840.1,1839.9,17.41207799]
[1746578974328,3.0,1840.1,1839.9,17.41191566]
[1746578974490,3.0,1840.1,1839.9,17.41189258]
[1746578975624,3.0,1840.1,1839.9,11.977]
[1746578976429,0.30432523,1840.0,1839.9,11.977]
[1746578976585,0.30432523,1840.0,1839.7,5.43547301]
[1746578976793,0.7969,1839.9,1839.6,5.43585236]
[1746578977032,0.7969,1839.9,1839.6,5.43577624]
[1746578977215,4.21939188,1840.0,1839.7,5.4356525]
[1746578977525,0.304547,1839.9,1839.8,5.43521046]
[1746578977925,3.30453627,1839.9,1839.6,5.43576347]
[1746578978130,0.30453627,1839.9,1839.6,5.43596434]
[1746578978428,13.4355957,1840.1,1839.7,5.43547586]
[1746578978604,3.0,1839.9,1839.7,5.43547586]
[1746578978791,3.0,1839.9,1839.6,5.43579886]
[1746578979329,0.3049234,1839.8,1839.6,5.43579886]
[1746578979526,3.0,1839.9,1839.6,5.43579886]
[1746578979694,0.30492335,1839.8,1839.5,6.19668472]
[1746578979894,8.43510329,1839.9,1839.5,11.63276073]
[1746578980096,8.43510329,1839.9,1839.5,17.60776073]
[1746578980923,8.43510329,1839.9,1839.5,5.43607601]
[1746578981128,14.17584332,1839.9,1839.5,11.41307601]
[1746578981289,0.777,1839.8,1839.5,11.41307601]
[1746578981690,5.43608111,1839.6,1839.3,5.43685014]
[1746578981935,12.65521242,1839.7,1839.3,11.41385014]